Cogmind - Beta 15 @@@ ROGUE MODE // 2025.05.28 @ 21:41:15 Player: Kakograf Result: Destroyed by S-10 Pest with Light Assault Rifle Performance ------------- Evolutions (0) 0 Regions Visited (2) 400 Robots Destroyed (25) 125 Value Destroyed (476) 476 Prototype IDs (0) 0 Alien Tech Used (0) 0 Bonus (0) 0 TOTAL SCORE: 1001 Bonus ------- None Cogmind --------- Core Integrity 0/250 Matter 300/300 Energy 120/125 System Corruption 0% Temperature Cool (0) Movement Walking (120) Location -10/Mines Parts ------- > --- POWER (1) -------- Light Ion Engine > --- PROPULSION (2) --- Aluminum Leg Aluminum Leg > --- UTILITY (2) ------ (None) > --- WEAPON (2) ------- Flail Flail > --- INVENTORY (5) ---- Light Ion Engine VTOL Module EM Pulse Gun Light Cannon Hammer Peak State ------------ > --- POWER ------------ Light Ion Engine > --- PROPULSION ------- VTOL Module VTOL Module > --- UTILITY ---------- Sensor Array ECM Suite > --- WEAPON ----------- Flail Flail > --- INVENTORY -------- Aluminum Leg Aluminum Leg EM Pulse Gun Light Cannon [Rating: 11] Favorites ----------- Power Ion Engine Engine Ion Engine Propulsion Aluminum Leg Leg Aluminum Leg Flight Unit VTOL Module Utility Sensor Array Device Sensor Array Protection Power Shielding Weapon Small Laser Energy Gun Small Laser Ballistic Cannon Light Cannon Impact Weapon Flail Build | -11 -10 -10 ------- Run | Yrd Mat Min Slots Evolved . | . . . Power . | . . . Propulsion . | . . . Utility . | . . . Weapon . | . . . Parts Attached 15 | 5 6 4 Power 2 | 1 . 1 Engine 2 | 1 . 1 Core . | . . . Reactor . | . . . Propulsion 5 | 2 1 2 Treads . | . . . Leg 3 | 2 1 . Wheel . | . . . Hover . | . . . Flight 2 | . . 2 Utility 3 | . 3 . Device 2 | . 2 . Storage . | . . . Processor . | . . . Hackware . | . . . Protection 1 | . 1 . Artifact . | . . . Weapon 5 | 2 2 1 Energy Gun 2 | 2 . . Energy Cannon . | . . . Ballistic Gun . | . . . Ballistic Cannon 1 | . 1 . Launcher . | . . . Special Weapon . | . . . Impact Weapon 2 | . 1 1 Slashing Weapon . | . . . Piercing Weapon . | . . . Special Melee Weapon . | . . . Unidentified Prototypes . | . . . Parts Lost 5 | . 1 4 Power 1 | . . 1 Propulsion 2 | . . 2 Utility 1 | . . 1 Weapon 1 | . 1 . Highest Loss Streak 2 | . 1 2 To Critical Strikes . | . . . Average Backups 3 | . 3 4 Power . | . . . Propulsion 1 | . 2 1 Utility . | . . . Weapon 1 | . 1 2 Tool/Special . | . . . Unused Backups 5 | . 2 3 Power 1 | . . 1 Propulsion 2 | . 2 . Utility . | . . . Weapon 2 | . . 2 Tool/Special . | . . . Average Slot Usage (%) 86 | . 89 81 Engine 13 | . 14 12 Leg 22 | . 28 12 Flight 4 | . . 14 Device 13 | . 13 12 Protection 2 | . 4 . Energy Gun 11 | . 18 . Ballistic Cannon 5 | . 8 . Impact Weapon 10 | . . 28 Peak Build Rating 11 | 5 8 11 Average Rating 6 | 3 6 8 On Entrance 4 | . 5 8 Naked Turns . | . . . Heaviest Build 13 | 7 13 12 Greatest Support 20 | 20 20 20 Greatest Overweight (x) 1 | . . 1 Average Overweight (x) . | . . . Largest Inventory Capacity 5 | 5 5 5 Average Capacity 5 | 5 5 5 Most Carried 5 | 4 5 5 Average Carried 3 | . 3 4 Final Capacity 5 | 5 5 5 Final Carried 5 | . 5 5 Class Distribution -------------------- 92% | Mutant 7% | Sprinter Dominant Class ---------------- Mutant | -10/Materials Mutant | -10/Mines Resources | -11 -10 -10 ----------- Run | Yrd Mat Min Matter Collected 403 | 141 212 50 Remotely . | . . . Salvage Created 552 | . 376 176 Parts 35 | . 22 13 Haulers Intercepted . | . . . Recyclers Shooed . | . . . Parts Field Recycled . | . . . Retrieved Matter . | . . . Parts Self-Destructed . | . . . Prevented . | . . . Kills | -11 -10 -10 ------- Run | Yrd Mat Min Combat Hostiles Destroyed 23 | . 9 14 Melee 9 | . . 9 Guns 2 | . 2 . Cannons 7 | . 7 . Classes Destroyed 4 | . 3 1 Worker 1 | . 1 . Watcher 1 | . 1 . Swarmer 14 | . . 14 Grunt 9 | . 9 . Best Kill Streak 4 | . 3 4 Combat Bots Only 4 | . 2 4 Max Kills in Single Turn 2 | . 2 1 Gunslinging 1 | . 1 . Exploded . | . . . Melee 1 | . . 1 Uniques/NPCs Destroyed . | . . . Combat | -11 -10 -10 -------- Run | Yrd Mat Min Hostile Shots Fired 130 | . 61 69 Missed 36 | . 20 16 Hits 94 | . 41 53 Projectile 94 | . 41 53 Damage Taken 886 | . 472 414 Core 253 | . 90 163 Absorbed by Shields . | . . . Redirected to Shielding 3 | . 3 . Core Remaining (%) 100 | 100 . . Volleys Fired 23 | . 23 . Largest 2 | . 2 . Hottest 80 | . 80 . Shots Fired 43 | . 43 . Gun 31 | . 31 . Cannon 12 | . 12 . Launcher . | . . . Special . | . . . Kinetic 12 | . 12 . Thermal 31 | . 31 . Explosive . | . . . Electromagnetic . | . . . Robot Hit Streak 6 | . 6 . Robot Miss Streak 3 | . 3 . Penetration Max . | . . . Secondary Targets 1 | . 1 . Max Gunslinging Chain 1 | . 1 . Shots Hit Robots 45 | . 26 19 Core Hits 21 | . 16 5 Critical Kills 2 | . . 2 Critical Parts Destroyed 3 | . . 3 Critical Strikes 7 | . 2 5 Blast 2 | . 2 . Smash 5 | . . 5 Melee Attacks 49 | . . 49 Impact 49 | . . 49 Slashing . | . . . Piercing . | . . . Sneak Attacks . | . . . Combat Hostiles . | . . . Follow-up Attacks 9 | . . 9 Damage Inflicted 1066 | . 379 687 Guns 218 | . 218 . Cannons 161 | . 161 . Explosions . | . . . Melee 687 | . . 687 Ramming . | . . . Kinetic 161 | . 161 . Thermal 218 | . 218 . Explosive . | . . . Electromagnetic . | . . . Impact 687 | . . 687 Slashing . | . . . Piercing . | . . . Highest Corruption . | . . . Average Corruption . | . . . Corruption Purged . | . . . Corruption Blocked . | . . . Overload Shots . | . . . Overflow Damage 226 | . . 226 Projectiles . | . . . Explosions . | . . . Melee 226 | . . 226 Knockbacks 1 | . . 1 Impact 1 | . . 1 Kinetic . | . . . Secondary . | . . . Self-Inflicted Damage . | . . . Shots . | . . . Rammed . | . . . Targets Rammed . | . . . Kicked . | . . . Crushed . | . . . Highest Temperature 225 | . 225 . Average Temperature 63 | . 63 . Received Heat Transfer 267 | . 267 . Siege Activations . | . . . Martial Activations . | . . . Shielding Activations . | . . . Robots Disrupted . | . . . Combat Hostiles . | . . . Robots Corrupted 5 | . . 5 Combat Hostiles 5 | . . 5 Parts Fried 9 | . . 9 Impact Corruptions 12 | . . 12 Robots Melted . | . . . Combat Hostiles . | . . . Parts Melted 1 | . 1 . Heat Transferred 500 | . 500 . Parts Sabotaged . | . . . Parts Stolen . | . . . Parts Stripped . | . . . Power Chain Reactions . | . . . Alert | -11 -10 -10 ------- Run | Yrd Mat Min Maximum Alert Level . | . . . Low Security (%) 100 | 100 100 100 Level 1 . | . . . Level 2 . | . . . Level 3 . | . . . Level 4 . | . . . Level 5 . | . . . High Security . | . . . Max Security . | . . . Peak Influence 117 | . 89 117 Initial 17 | . . 17 Average 39 | . 25 72 Influence Increases 559 | . 239 320 Destroy 0b10 Robot/C 460 | . 180 280 Destroy 0b10 Robot/NC 10 | . 10 . Destroy Leader 82 | . 42 40 Successful Hack 7 | . 7 . Influence Decreases 460 | . 194 266 Entered New Map 28 | . . 28 Time Decay 382 | . 184 198 Lost Part 50 | . 10 40 Squads Dispatched 4 | . 4 . Investigation 3 | . 3 . Extermination . | . . . Reinforcement 1 | . 1 . Assault . | . . . Garrison . | . . . Intercept . | . . . Searches Triggered . | . . . Construction Impeded . | . . . Haulers Reinforced . | . . . Active Scanning Responses . | . . . Cargo Convoy Interrupts . | . . . Stealth | -11 -10 -10 --------- Run | Yrd Mat Min Distress Signals 1 | . 1 . Communications Jammed . | . . . Distress Signals . | . . . Times Spotted 38 | . 19 19 Peak Tracking Total 3 | . 3 3 Tactical Retreats 3 | . 2 1 Traps | -11 -10 -10 ------- Run | Yrd Mat Min Traps Triggered 2 | . 2 . Indirectly . | . . . Trap Hack Attempts . | . . . Triggered . | . . . Disarmed . | . . . Reprogrammed . | . . . Reused . | . . . Traps Extracted . | . . . Installed . | . . . Triggered . | . . . Machines | -11 -10 -10 ---------- Run | Yrd Mat Min Machines Disabled . | . . . Max in Single Turn . | . . . Machines Repaired . | . . . Machines Dismantled . | . . . Machines Sabotaged . | . . . Overloaded Fab Kills . | . . . Hacking | -11 -10 -10 --------- Run | Yrd Mat Min Machines Accessed 2 | . 2 . Terminals 2 | . 2 . Fabricators . | . . . Repair Stations . | . . . Recycling Units . | . . . Scanalyzers . | . . . Garrison Access . | . . . Total Hacks 7 | . 7 . Successful 2 | . 2 . Failed 5 | . 5 . Catastrophic 2 | . 2 . Database Lockouts . | . . . Manual 4 | . 4 . Terminals 7 | . 7 . Fabricators . | . . . Repair Stations . | . . . Recycling Units . | . . . Scanalyzers . | . . . Garrison Access . | . . . Terminal Hacks 2 | . 2 . Branch Access Points 1 | . 1 . Patrol Status 1 | . 1 . Fabricator Hacks . | . . . Repair Station Hacks . | . . . Recycling Unit Hacks . | . . . Scanalyzer . | . . . Garrison Access Hacks . | . . . Unauthorized Hacks . | . . . Terminals . | . . . Fabricators . | . . . Repair Stations . | . . . Recycling Units . | . . . Scanalyzers . | . . . Garrison Access . | . . . Data Cores Recovered . | . . . Used . | . . . Hacking Detections 2 | . 2 . Full Trace Events 2 | . 2 . Feedback Events . | . . . Feedback Blocked . | . . . Robot Schematics Acquired . | . . . Robots Built . | . . . Authchips . | . . . Time . | . . . Total Robot Build Rating . | . . . Part Schematics Acquired . | . . . Parts Built . | . . . Authchips . | . . . Time . | . . . Total Part Build Rating . | . . . Parts Repaired . | . . . Time . | . . . Parts Recycled . | . . . Recycled Matter . | . . . Retrieved Matter . | . . . Retrieved Components . | . . . Parts Scanalyzed . | . . . Part Schematics Acquired . | . . . Parts Damaged . | . . . Bothacking | -11 -10 -10 ------------ Run | Yrd Mat Min Used RIF Installer . | . . . Robots Hacked . | . . . Non-combat . | . . . Combat . | . . . Robot Hacks Applied . | . . . Relay Couplers Released . | . . . Fabnet Peak Effective % . | . . . Robots Rewired . | . . . Allies Hacked . | . . . Hacks Repelled . | . . . Allies | -11 -10 -10 -------- Run | Yrd Mat Min Total Allies . | . . . Largest Group . | . . . Highest-Rated Group . | . . . Highest-Rated Ally . | . . . Total Orders . | . . . Ally Attacks . | . . . Total Damage . | . . . Kills . | . . . Allies Corrupted . | . . . Allies Melted . | . . . Intel | -11 -10 -10 ------- Run | Yrd Mat Min Active Infowar (turns) 694 | . 477 217 Sensors 694 | . 477 217 ECM 272 | . 231 41 Robot Analysis Total . | . . . Derelict Logs Recovered 2 | . . 2 Drone Launches . | . . . Drone Recoveries . | . . . Exploration | -11 -10 -10 ------------- Run | Yrd Mat Min Turns Passed 1198 | 68 730 400 Spaces Moved 852 | 63 436 353 Core 23 | 23 . . Treads . | . . . Legs 585 | 40 436 109 Wheels . | . . . Hover . | . . . Flight 244 | . . 244 Fastest Speed 32 | 50 120 32 Average Speed 100 | 94 120 76 Slowest Speed 190 | 120 120 190 Overloaded Moves . | . . . Propulsion Burnouts . | . . . Robots Hopped . | . . . Potential Cave-ins . | . . . Cave-ins Triggered . | . . . Exploration Rate (%) 34 | 3 47 53 Regions Visited 2 Branch Regions 1 Pre-discovered Areas 2 | . . 2 Known Exits Taken 1 | . 1 . Unknown Exits Taken 1 | 1 . . Scrap Searched 1 | . . 1 Spaces Dug . | . . . Terrain Destroyed . | . . . Melee . | . . . Projectile . | . . . AOE . | . . . Terrain Rammed . | . . . Walls Destroyed . | . . . Machines Disabled . | . . . Actions | -11 -10 -10 --------- Run | Yrd Mat Min Total 1097 | 71 600 426 Wait 147 | . 121 26 Move 850 | 62 435 353 Hop . | . . . Pick Up 17 | 4 11 2 Fast Attach 3 | 1 1 1 Attach 10 | 4 3 3 Detach 1 | . . 1 Swap 4 | . 2 2 Drop 5 | . 4 1 Fire 23 | . 23 . Melee 37 | . . 37 Ram . | . . . Kick . | . . . Crush . | . . . Escape Stasis . | . . . Rewire . | . . . Trap . | . . . Miscellaneous . | . . . Route ------- -11/Scrapyard -10/Materials (discovered 2 exits: [*Mat] / *Min) -10/Mines (discovered 1 exit: [*Mat]) History --------- Turn | Location | Event 6 | -11/Scrapyard | Discovered new exit (range 16) 69 | -11/Scrapyard | Entered Materials 158 | -10/Materials | Identified exit to Mines 211 | -10/Materials | Discovered new exit (range 8) 317 | -10/Materials | Build established: Mutant 799 | -10/Materials | Entered Mines 828 | -10/Mines | Core integrity fell below 50% 862 | -10/Mines | Learned location of Zion (-6) 973 | -10/Mines | Discovered new exit (range 7) 1083 | -10/Mines | Learned location of Storage (-9) 1165 | -10/Mines | Core integrity fell below 20% 1199 | -10/Mines | Destroyed by S-10 Pest with Light Assault Rifle Last Messages --------------- 6G-NI8(g) slips back into the shadows. Acquired 6 matter. Acquired Lgt. Ion Engine. K-01 Serf collects debris. S-10 Pest suffers critical hit (Smash). Destroyed Lgt. Assault Rifle. S-10 Pest system corrupted by crushing effect. Lgt. Ion Engine fried. S-10 Pest destroyed. Flail follow-up attack on S-10 Pest. S-10 Pest suffers critical hit (Smash). Destroyed Lgt. Ion Engine. S-10 Pest system corrupted by crushing effect. S-10 Pest system terminally corrupted. Flight Unit fried. Destroyed Flight Unit. S-10 Pest system corrupted by crushing effect. Flail follow-up attack on S-10 Pest. S-10 Pest system terminally corrupted. Lgt. Ion Engine fried. Map ----- +----------------------------------------------------+ | ????????????????????????????????? | | ????????????????????????????????? | | ?####???????????????????????????? | | ## ##??????????????????????????? | | # ##?????????????????????????? | | # #?????????????????????????? | | ##????????????????????????? | | # ##???????????????????????? | | # ##??????????????????????? | | # #??????????????????????? | | ##??????????????????????? | | ####???????????? ??????????? | | ^ ## #??????????????? ??????????? | | ## #??????????????? ??????????? | | # ## #??????????????? ??????????? | | ?# #??????????????? ??????????? | | ##?# #??????????????? ??????????? | | ???# #??????????????? ??????????? | | ???# ##########?????# #?????????? | | ???# #?????# #?????????? | | ???# ######## #?????# #?????????? | | ???# #??????# #?????# #?????????? | | ???#!#??????# #?????# #???###???? | | ???#%#??????# #?????# #?## ##??? | | ####!#??????# #?????# #?# ##?? | | % = #??????# ####### ###@ #?? | | #%###??????# %% ss #?? | | ##=#????????############# ##?? | | ?#%#????????????????????## #??? | | ?# #??????????????????????## #??? | | ?# #???????????????????????? #??? | | ?# #?????????????????????????#??? | | ?# ##???????????????????????????? | | ## ##??????????????????????????? | | # #??????????????????????????? | | #??????????????????????????? | | ##??????????????????????????? | | ##???????????????????????????? | | ##????????????????????????????? | | ##????????????????????????????? | | ########### ##??????????????? | | #??????????????? | | #?????????????? | | ###############?????????????????? | | #???????????????????????????????? | | ????????????????????????????????? | | ????????????????????????????????? | | ????????????????????????????????? | | ????????????????????????????????? | | ????????????????????????????????? | +----------------------------------------------------+ Best States ------------- Heat Dissipation 25 Energy Generation 10 Energy Capacity 250 Matter Stores 300 Matter Capacity 300 Sight Range 16 Robot Scan Range 14 Terrain Scan Density 10 ECM Strength 1 Power Shielding 33 Evasion (%) 63 Item Schematics ----------------- None Robot Schematics ------------------ None Fabricated ------------ Nothing Repaired ---------- Nothing Alien Tech Used ----------------- None Achievements -------------- None Challenges ------------ None Game ------ Seed EfficiencyHardenedNullifier Manual? 0 Play Time 00:17:25 Cumulative 11.9 hours Start 2025.05.28 @ 21:23:59 End 2025.05.28 @ 21:41:15 Sessions 1 Manual Loads 0 Difficulty Rogue Special Mode None Game No. 15 Rogue 15 Adventurer 0 Explorer 0 Win Type - Total 0 Types 0/0/0/0/0/0/0/0/0/0 Lore% 3 Gallery% 14 Achievement% 17 Wizard Run 0 Options --------- Layout 1 ASCII 0 Keyboard 1 Movement Arrows Keybinds 0 Fullscreen 1 Font 24/Smallcaps Map View 50x35 Zoom Use 0% Tactical HUD 0 Map Filters NONE Filters NONE Steam 1 RUN: f915fc27-a109-4b57-88f6-b54657589aa3